[Event "LAT-ch Women 2017"]
[Site "Riga"]
[Date "2017.10.10"]
[Round "7"]
[White "Golsta, Madara"]
[Black "Parhomenko, Margarita"]
[Result "1-0"]
[ECO "B16"]
[WhiteElo "1716"]
[BlackElo "1919"]
[Annotator "NA"]
[PlyCount "65"]
[EventDate "2017.??.??"]
[EventType "swiss"]
[EventCountry "LAT"]
[SourceTitle "playchess.com"]
[Source "ChessBase"]
[SourceQuality "1"]
[TimeControl "5400+30"]

1. e4 {[%emt 0:00:00]} c6 {[%emt 0:01:18]} 2. d4 {[%emt 0:00:21]} d5 {[%emt 0:00:07]} 3. Nd2 {[%emt 0:00:59]} dxe4 {[%emt 0:00:24]} 4. Nxe4 {[%emt 0:00:26]} Nf6 {[%emt 0:00:50]} 5. Nxf6+ {[%emt 0:00:46]} gxf6 {[%emt 0:00:18]} 6. c3 {[%emt 0:01:29]} Bf5 {[%emt 0:00:48]} 7. Nf3 {[%emt 0:01:38]} Nd7 {[%emt 0:05:33]} 8. g3 {[%emt 0:02:32]} Nb6 {[%emt 0:01:35]} 9. Bg2 {[%emt 0:02:09] B16: Caro-Kann: Bronstein-Larsen Variation} Qd7 {[%emt 0:02:21]} 10. O-O {[%emt 0:03:41]} Bh3 {[%emt 0:02:18]} (10... O-O-O 11. a4 Nd5 12. Bd2 e6 13. Re1 Kb8 14. b4 Bg4 15. Qb3 Nc7 16. Bf4 Bd6 17. Bxd6 Qxd6 {1-0 (31) Fernandez Romero,E (2449)-Campora,D (2545) Dos Hermanas 2005}) 11. Qe2 {[%emt 0:03:26]} Bxg2 {[%emt 0:00:49]} 12. Kxg2 {[%emt 0:00:08]} O-O-O $146 {[%emt 0:03:38]} ({Predecessor:} 12... h5 13. Rd1 O-O-O 14. c4 h4 15. Bf4 hxg3 16. Bxg3 Qh3+ {1-0 (38) Abdulyazanov,M (2332)-Gusakov,V (2276) Uljanovsk 2007}) 13. Bf4 {[%emt 0:02:06]} Rg8 {[%emt 0:16:33]} 14. a4 {[%emt 0:05:58]} Qg4 {[%emt 0:07:47]} 15. Bd2 {[%emt 0:05:03]} e5 {[%emt 0:12:22]} (15... Nd5 $142) 16. h3 {[%emt 0:02:53]} ({Much worse is} 16. dxe5 $6 Nc4 $11) (16. a5 $16 Nd7 17. Rfe1) 16... Qe6 $1 {[%emt 0:03:47]} 17. Rfe1 {[%emt 0:09:07]} Bd6 {[%emt 0:06:01]} 18. a5 {[%emt 0:07:39]} Nd7 {[%emt 0:01:03]} 19. a6 {[%emt 0:00:34]} b6 {[%emt 0:00:26]} 20. b4 {[%emt 0:03:36]} Rge8 {[%emt 0:07:47]} 21. b5 {[%emt 0:04:53]} e4 {[%emt 0:02:10]} 22. Nh4 {[%emt 0:03:35]} Qd5 {[%emt 0:01:15]} (22... Bc7 $142 23. bxc6 Qxc6) 23. c4 {[%emt 0:02:58]} Qxd4 {[%emt 0:00:43] [#]} 24. Nf5 $1 {[%emt 0:03:51]} ({Inferior is} 24. bxc6 Ne5 $11) 24... Qc5 {[%emt 0:01:15] [#]} 25. Ng7 $1 {[%emt 0:00:35]} Rg8 {[%emt 0:04:19]} 26. Be3 {[%emt 0:00:37]} Qe5 {[%emt 0:02:08]} 27. Bf4 {[%emt 0:00:34]} Qc5 {[%emt 0:02:12]} 28. Bxd6 {[%emt 0:00:34]} Qxd6 {[%emt 0:00:13]} 29. Nf5 {[%emt 0:00:12]} Qc5 {[%emt 0:00:53]} 30. Qxe4 {[%emt 0:01:19]} Ne5 {[%emt 0:01:47]} 31. bxc6 {[%emt 0:05:26]} Rd2 {[%emt 0:01:34]} 32. Rf1 {[%emt 0:04:15]} Qxc6 $2 {[%emt 0:03:24]} (32... Kc7 $16) 33. Ne7+ $18 {[%emt 0:00:08]} 1-0

[Event "LAT-ch Women 2017"]
[Site "Riga"]
[Date "2017.10.10"]
[Round "7"]
[White "Vainovska, Valentina"]
[Black "Zalcmane, Vija"]
[Result "1/2-1/2"]
[ECO "E21"]
[WhiteElo "1676"]
[BlackElo "1533"]
[Annotator "NA"]
[PlyCount "49"]
[EventDate "2017.??.??"]
[EventType "swiss"]
[EventCountry "LAT"]
[SourceTitle "playchess.com"]
[Source "ChessBase"]
[SourceQuality "1"]
[TimeControl "5400+30"]

1. d4 {[%emt 0:01:13]} Nf6 {[%emt 0:00:39]} 2. Nf3 {[%emt 0:00:08]} e6 {[%emt 0:00:26]} 3. c4 {[%emt 0:00:38]} b6 {[%emt 0:00:59]} 4. Nc3 {[%emt 0:00:42]} Bb7 {[%emt 0:00:19]} 5. e3 {[%emt 0:01:02]} Bb4 {[%emt 0:00:41]} 6. Bd2 {[%emt 0:00:35]} O-O {[%emt 0:00:24]} 7. Bd3 {[%emt 0:00:41]} d5 {[%emt 0:00:08]} 8. O-O {[%emt 0:02:44]} Nbd7 {[%emt 0:00:25]} 9. Nxd5 {[%emt 0:07:09]} Nxd5 {[%emt 0:02:57]} 10. cxd5 {[%emt 0:00:09]} Bxd2 {[%emt 0:01:01]} 11. Qxd2 {[%emt 0:02:52]} exd5 {[%emt 0:00:56]} 12. Rac1 {[%emt 0:00:49]} c5 {[%emt 0:05:04]} 13. b3 {[%emt 0:01:40]} Rc8 {[%emt 0:00:16]} 14. Qe2 {[%emt 0:01:28]} Rc7 {[%emt 0:02:57]} 15. Rfd1 {[%emt 0:02:21]} Qe7 {[%emt 0:02:46]} 16. g3 {[%emt 0:12:45]} g6 {[%emt 0:02:13]} 17. h4 {[%emt 0:00:34]} h5 {[%emt 0:00:22]} 18. Ng5 {[%emt 0:09:06]} Nf6 {[%emt 0:02:10]} 19. Nf3 {[%emt 0:19:15]} Ng4 {[%emt 0:03:58]} 20. Rc2 {[%emt 0:04:36]} Rfc8 {[%emt 0:02:15]} 21. Rdc1 {[%emt 0:00:48]} Kg7 {[%emt 0:03:45]} 22. Kg2 {[%emt 0:02:27]} Re8 {[%emt 0:02:31]} 23. Bb5 {[%emt 0:04:12]} Rec8 {[%emt 0:01:41]} 24. Bd3 {[%emt 0:00:34]} Re8 {[%emt 0:01:20]} 25. Bb5 {[%emt 0:00:06]} 1/2-1/2

[Event "LAT-ch Women 2017"]
[Site "Riga"]
[Date "2017.10.10"]
[Round "7"]
[White "Osobskaja, Zinaida"]
[Black "Ungure, Liga"]
[Result "1/2-1/2"]
[ECO "E94"]
[WhiteElo "1646"]
[BlackElo "1923"]
[Annotator "NA"]
[PlyCount "88"]
[EventDate "2017.??.??"]
[EventType "swiss"]
[EventCountry "LAT"]
[SourceTitle "playchess.com"]
[Source "ChessBase"]
[SourceQuality "1"]
[TimeControl "5400+30"]

1. Nf3 {[%emt 0:00:00]} Nf6 {[%emt 0:00:22]} 2. c4 {[%emt 0:00:00]} g6 {[%emt 0:00:04]} 3. d4 {[%emt 0:00:20]} Bg7 {[%emt 0:00:15]} 4. Nc3 {[%emt 0:00:11]} O-O {[%emt 0:00:08]} 5. e4 {[%emt 0:00:10]} d6 {[%emt 0:00:03]} 6. Be2 {[%emt 0:00:26]} e5 {[%emt 0:00:26]} 7. O-O {[%emt 0:00:13]} exd4 {[%emt 0:00:48]} 8. Nxd4 {[%emt 0:00:12]} Re8 {[%emt 0:00:07]} 9. f3 {[%emt 0:00:13]} Nc6 {[%emt 0:00:21]} 10. Be3 {[%emt 0:00:50]} Nh5 {[%emt 0:00:31]} 11. Nxc6 {[%emt 0:00:18]} bxc6 {[%emt 0:00:01]} 12. Qd2 {[%emt 0:00:20]} c5 {[%emt 0:01:06]} 13. Rad1 {[%emt 0:00:41] E94: Königsindisch (Klassisches System)} Bb7 {[%emt 0:00:39]} 14. Bd3 $146 {[%emt 0:06:18]} ({Vorgänger:} 14. Nd5 Qb8 15. Rb1 a5 16. Kh1 Nf6 17. Rfe1 Bc6 18. Bd3 Nd7 19. Bg5 Bxd5 20. exd5 Qb4 21. Rxe8+ Rxe8 {½-½ (41) Aranha Filho,A (2289)-Matsuura,E (2486) Blumenau 2015}) 14... Qb8 {[%emt 0:07:20]} 15. Ne2 {[%emt 0:01:21]} Bc6 {[%emt 0:02:12]} 16. b3 {[%emt 0:01:08]} a5 {[%emt 0:00:31]} 17. Rb1 {[%emt 0:00:26]} Qb4 {[%emt 0:03:48]} 18. a4 {[%emt 0:01:09]} Reb8 {[%emt 0:14:23]} 19. Bc2 {[%emt 0:03:38]} Qxd2 {[%emt 0:11:50]} 20. Bxd2 {[%emt 0:01:58]} Nf6 {[%emt 0:00:14]} 21. Bc3 {[%emt 0:03:56]} Nd7 {[%emt 0:02:09]} 22. Bxg7 {[%emt 0:01:17]} Kxg7 {[%emt 0:00:02]} 23. Rbd1 {[%emt 0:00:43]} Re8 {[%emt 0:03:53]} 24. Nc3 {[%emt 0:00:26]} Nf8 {[%emt 0:02:59]} 25. Rfe1 {[%emt 0:01:21]} Ne6 {[%emt 0:03:15]} 26. Ne2 {[%emt 0:00:03]} Re7 {[%emt 0:02:43]} 27. Kf2 {[%emt 0:00:28]} h5 {[%emt 0:02:20]} 28. h4 {[%emt 0:00:49]} f6 {[%emt 0:03:58]} 29. g3 {[%emt 0:00:36]} Rae8 {[%emt 0:01:11]} 30. Rh1 {[%emt 0:06:49]} Nd8 {[%emt 0:04:08]} 31. Nf4 {[%emt 0:02:25]} Ne6 {[%emt 0:04:07]} 32. Nxe6+ {[%emt 0:00:17]} Rxe6 {[%emt 0:00:02]} 33. Rde1 {[%emt 0:01:01]} R6e7 {[%emt 0:02:42]} 34. Bd1 {[%emt 0:00:17]} Bb7 $15 {[%emt 0:02:53]} 35. Reg1 {[%emt 0:05:57]} Bc8 {[%emt 0:03:30]} 36. Bc2 {[%emt 0:01:16]} Bd7 {[%emt 0:03:20]} 37. Rd1 {[%emt 0:00:33]} Bc8 {[%emt 0:00:32]} 38. Rhe1 {[%emt 0:00:37]} Bb7 {[%emt 0:00:24]} 39. Re3 {[%emt 0:00:19]} Bc8 {[%emt 0:00:22]} 40. Rde1 {[%emt 0:00:26]} Bd7 {[%emt 0:00:23]} 41. Bd1 {[%emt 0:00:34]} Bc6 {[%emt 0:00:15]} 42. Bc2 {[%emt 0:00:38]} Bd7 {[%emt 0:00:11]} 43. Rg1 Bc6 44. Rge1 f5 1/2-1/2

[Event "LAT-ch Women 2017"]
[Site "Riga"]
[Date "2017.10.10"]
[Round "7"]
[White "Ter-Avetisjana, Agnesa Stepania"]
[Black "Limanovska, Elizabete"]
[Result "0-1"]
[ECO "B90"]
[WhiteElo "1319"]
[BlackElo "1972"]
[Annotator "NA"]
[PlyCount "100"]
[EventDate "2017.??.??"]
[EventType "swiss"]
[EventCountry "LAT"]
[SourceTitle "playchess.com"]
[Source "ChessBase"]
[SourceQuality "1"]
[TimeControl "5400+30"]

{[%evp 34,99,-125,-166,-70,-139,-114,-418,-152,-174,-157,-601,-623,-637,-623,-645,-453,-1306,-851,-29993,-1827,-2381,-593,-380,32767,32767,-450,-657,-329,32767,32767,32767,32767,32767,32767,32767,32767,32767,32767,-29988,-5318,-29989,32767,32767,32767,-29992,-687,-29986,-29984,-29997,-29998,-29998,-29992,-29992,-29993,-29993,-1277,32767,32767,-29994,-29995,-29997,-1312,-29998,-5410,-29998,-29999,-29999]} 1. e4 {[%emt 0:00:00]} c5 {[%emt 0:00:04]} 2. Nf3 {[%emt 0:00:00]} d6 {[%emt 0:00:03]} 3. d4 {[%emt 0:00:00]} cxd4 {[%emt 0:00:02]} 4. Nxd4 {[%emt 0:00:00]} Nf6 {[%emt 0:00:02]} 5. Nc3 {[%emt 0:00:02]} a6 {[%emt 0:00:04]} 6. Bd3 {[%emt 0:01:06]} e5 {[%emt 0:02:22]} 7. Nb3 {[%emt 0:01:00]} Be7 {[%emt 0:03:10]} 8. Bg5 {[%emt 0:01:22] B90: Sizilianisch (Najdorf-Variante, Abweichungen)} (8. O-O O-O 9. Re1 Nc6 10. Bf1 Be6 11. Nd5 a5 12. c4 a4 13. Nd2 Nd4 14. Nxe7+ Qxe7 15. Nb1 Qc7 {1-0 (56) Rogos,J (2380)-Norrelykke,S (2337) ICCF email 2012}) 8... Be6 {[%emt 0:02:28]} 9. Bxf6 {[%emt 0:01:21]} Bxf6 {[%emt 0:00:14]} 10. Nd5 {[%emt 0:00:29]} Bg5 {[%emt 0:04:09]} 11. h4 $146 {[%emt 0:00:36]} ({Vorgänger:} 11. O-O O-O 12. c4 Nc6 13. g3 Rc8 14. Kh1 Bh3 15. Rg1 f5 16. exf5 Bxf5 17. Bxf5 Rxf5 {0-1 (33) Kocyigit,B (1486)-Hatipli,M (1791) Manavgat 2016}) 11... Bh6 {[%emt 0:17:30]} 12. g4 {[%emt 0:03:22]} Bxd5 {[%emt 0:01:53]} 13. exd5 {[%emt 0:00:29]} Bf4 {[%emt 0:00:07]} 14. Qe2 {[%emt 0:05:36]} Nd7 {[%emt 0:01:21]} 15. c4 {[%emt 0:05:01]} O-O {[%emt 0:06:12]} 16. Qc2 {[%emt 0:04:07]} h6 {[%emt 0:10:02]} 17. Ke2 {[%emt 0:04:08]} Re8 {[%emt 0:05:50]} 18. Nd2 {[%emt 0:02:00] [#]} (18. Bh7+ $17 Kf8 19. Bf5) 18... Nc5 {[%emt 0:03:42]} (18... Bxd2 $1 $19 19. Kxd2 Qb6) 19. Rag1 {[%emt 0:03:06] [#]} (19. Ne4 $15) 19... b5 $1 {[%emt 0:13:58]} 20. cxb5 $2 {[%emt 0:01:21] [#]} (20. b3 $17) 20... Nxd3 $2 {[%emt 0:00:06]} (20... e4 $1 $19 {[%mdl 512] has better winning chances.} 21. Nxe4 Rc8) 21. Qxd3 {[%emt 0:00:22]} axb5 {[%emt 0:02:04]} 22. Qxb5 $2 {[%emt 0:01:29]} (22. a3) 22... Rb8 {[%emt 0:00:28]} 23. Qa4 {[%emt 0:02:30]} Rxb2 {[%emt 0:00:48]} 24. Rd1 {[%emt 0:00:22]} Qa8 {[%emt 0:01:09]} 25. Qd7 {[%emt 0:02:35]} (25. Qxa8 $142 Rxa8 26. Rh3) 25... e4 {[%emt 0:03:34]} 26. Qf5 {[%emt 0:00:46]} e3 {[%emt 0:00:06]} (26... Qa6+ $142 27. Ke1 e3 28. Nc4 exf2+ 29. Kf1 Qxc4+ 30. Qd3 Qxd3+ 31. Rxd3 Re1+ 32. Kg2 f1=Q#) 27. Qxf4 {[%emt 0:00:30]} exd2+ {[%emt 0:00:05]} (27... Rxd2+ $142 28. Rxd2 exd2+ 29. Kd1 Qxa2) 28. Kf3 {[%emt 0:01:11]} Qxd5+ {[%emt 0:00:31]} 29. Kg3 {[%emt 0:00:10]} Rxa2 {[%emt 0:00:42]} 30. Rhf1 {[%emt 0:01:00]} g5 {[%emt 0:05:47]} 31. hxg5 {[%emt 0:00:40]} hxg5 {[%emt 0:00:01]} 32. Qf3 {[%emt 0:00:57]} Qc5 {[%emt 0:00:53]} 33. Qd3 {[%emt 0:00:56]} Ra3 {[%emt 0:00:06]} 34. Rxd2 {[%emt 0:00:44]} Rxd3+ {[%emt 0:00:02]} 35. Rxd3 {[%emt 0:00:10]} Qe5+ {[%emt 0:00:04]} 36. Kh3 {[%emt 0:00:28]} Re6 {[%emt 0:00:06]} (36... Qe2 $142 37. Rg1 Qxf2 38. Ra1 Qh4+ 39. Kg2 Re2+ 40. Kg1 Qh2+ 41. Kf1 Qg2#) 37. Rfd1 {[%emt 0:00:22]} Rh6+ {[%emt 0:00:09]} 38. Kg2 {[%emt 0:00:14]} Rh2+ {[%emt 0:00:56]} 39. Kf1 {[%emt 0:00:30]} Rh1+ {[%emt 0:00:35]} (39... Qe4 $142 40. Re3 Qc2 41. Rd2 Qxd2 42. Re2 Qd3 43. Kg1 Qh3 44. Re8+ Kh7 45. Rh8+ Kxh8 46. f4 Qg2#) 40. Kg2 {[%emt 0:00:03]} Qe4+ {[%emt 0:01:17]} 41. Kg3 {[%emt 0:00:09]} Qf4+ {[%emt 0:00:05]} 42. Kg2 {[%emt 0:00:16]} Rxd1 {[%emt 0:00:03]} 43. Rxd1 {[%emt 0:00:12]} Qxg4+ {[%emt 0:00:02]} 44. Kf1 {[%emt 0:00:17]} Qxd1+ {[%emt 0:00:02]} 45. Kg2 {[%emt 0:00:13]} Kg7 {[%emt 0:00:03]} 46. Kg3 {[%emt 0:00:04]} Kg6 {[%emt 0:00:05]} 47. f3 {[%emt 0:00:23]} Qg1+ {[%emt 0:00:30]} 48. Kh3 {[%emt 0:00:06]} f5 {[%emt 0:00:14]} (48... Kh5 $142 49. f4 g4#) 49. f4 {[%emt 0:00:09]} g4+ {[%emt 0:00:03]} 50. Kh4 {[%emt 0:00:12]} Qh2# {[%emt 0:00:03]} (50... Qe1# $142) 0-1